fUST/lending_fUST_20240731
["ID","MTS","AMOUNT","RATE_DAILY","PERIOD"]
[333727780,1722415841493,-885.84,0.00013698,2]
[333727781,1722415841503,-2416.07,0.00013698,2]
[333727782,1722415841513,-313.36360577,0.00013698,2]
[333727783,1722415841523,-500.0,0.00013698,2]
[333727784,1722415841533,-905.9,0.00013698,2]
[333727785,1722415841543,-1046.57,0.00013698,2]
[333727786,1722415841553,-1217.19,0.00013698,2]
[333727787,1722415841563,-233.97562821,0.00013698,2]
[333727788,1722415841573,-206.42538066,0.00013698,2]
[333727789,1722415841584,-500.0,0.00013698,2]
[333727790,1722415841593,-500.0,0.00013698,2]
[333727791,1722415841603,-516.35547637,0.00013698,2]
[333727792,1722415841613,-500.0,0.00013698,2]
[333727793,1722415841625,-500.00000002,0.00013698,2]
[333727794,1722415841636,-500.0,0.00013698,2]
[333727795,1722415841647,-151.0,0.00013698,2]
[333727796,1722415841656,-151.0,0.00013698,2]
[333727797,1722415841666,-151.0,0.00013698,2]
[333727798,1722415841676,-151.0,0.00013698,2]
[333727799,1722415841686,-151.0,0.00013698,2]
[333727800,1722415841695,-151.0,0.00013698,2]
[333727801,1722415841707,-500.0,0.00013698,2]
[333727802,1722415841717,-151.0,0.00013698,2]
[333727803,1722415841726,-151.0,0.00013698,2]
[333727804,1722415841735,-500.0,0.00013698,2]
[333727805,1722415841744,-500.0,0.00013698,2]
[333727806,1722415841754,-151.0,0.00013698,2]
[333727807,1722415841764,-151.0,0.00013698,2]
[333727808,1722415841774,-151.0,0.00013698,2]
[333727809,1722415841783,-241.993688,0.00013698,2]
[333727810,1722415841792,-500.0,0.00013698,2]
[333727811,1722415841802,-500.0,0.00013698,2]
[333727812,1722415841812,-500.0,0.00013698,2]
[333727813,1722415841821,-501.2016491,0.00013698,2]
[333727814,1722415841831,-500.0,0.00013698,2]
[333727815,1722415841840,-500.0,0.00013698,2]
[333727816,1722415841850,-500.0,0.00013698,2]
[333727817,1722415841859,-501.48550373,0.00013698,2]
[333727818,1722415841869,-151.0,0.00013698,2]
[333727819,1722415841878,-151.0,0.00013698,2]
[333727820,1722415841890,-502.22700289,0.00013698,2]
[333727821,1722415841899,-151.0,0.00013698,2]
[333727822,1722415841909,-500.0,0.00013698,2]
[333727823,1722415841919,-151.0,0.00013698,2]
[333727824,1722415841929,-151.0,0.00013698,2]
[333727825,1722415841940,-151.0,0.00013698,2]
[333727826,1722415841950,-151.0,0.00013698,2]
[333727827,1722415841959,-151.0,0.00013698,2]
[333727828,1722415841969,-151.0,0.00013698,2]
[333727829,1722415841978,-151.0,0.00013698,2]
[333727830,1722415841988,-507.14903014,0.00013698,2]
[333727831,1722415841997,-151.0,0.00013698,2]
[333727832,1722415842006,-151.0,0.00013698,2]
[333727833,1722415842016,-501.58533449,0.00013698,2]
[333727834,1722415842026,-154.080336,0.00013698,2]
[333727835,1722415842035,-151.0,0.00013698,2]
[333727836,1722415842045,-151.0,0.00013698,2]
[333727837,1722415842054,-151.0,0.00013698,2]
[333727838,1722415842063,-151.0,0.00013698,2]
[333727839,1722415842073,-151.0,0.00013698,2]
[333727840,1722415842082,-273.026072,0.00013698,2]
[333727841,1722415842092,-500.0,0.00013698,2]
[333727842,1722415842101,-543.75,0.00013698,2]
[333727843,1722415842110,-500.0,0.00013698,2]
[333727844,1722415842120,-500.0,0.00013698,2]
[333727845,1722415842131,-500.0,0.00013698,2]
[333727846,1722415842142,-500.0,0.00013698,2]
[333727847,1722415842151,-500.0,0.00013698,2]
[333727848,1722415842161,-151.0,0.00013698,2]
[333727849,1722415842170,-151.0,0.00013698,2]
[333727850,1722415842180,-500.0,0.00013698,2]
[333727851,1722415842189,-509.89520557,0.00013698,2]
[333727852,1722415842199,-500.0,0.00013698,2]
[333727853,1722415842208,-500.0,0.00013698,2]
[333727854,1722415842217,-502.37850891,0.00013698,2]
[333727855,1722415842227,-500.0,0.00013698,2]
[333727856,1722415842237,-500.0,0.00013698,2]
[333727857,1722415842246,-500.0,0.00013698,2]
[333727858,1722415842255,-500.0,0.00013698,2]
[333727859,1722415842265,-500.0,0.00013698,2]
[333727860,1722415842275,-500.0,0.00013698,2]
[333727861,1722415842284,-516.26547321,0.00013698,2]
[333727862,1722415842293,-617.85792312,0.00013698,2]
[333727863,1722415842303,-500.0,0.00013698,2]
[333727864,1722415842312,-187.80600871,0.00013698,2]
[333727865,1722415842322,-500.0,0.00013698,2]
[333727866,1722415842466,-500.0,0.00013698,2]
[333727867,1722415842475,-500.0,0.00013698,2]
[333727868,1722415842485,-500.0,0.00013698,2]
[333727869,1722415842495,-500.0,0.00013698,2]
[333727870,1722415842504,-321.344482,0.00013698,2]
[333727871,1722415842515,-321.344482,0.00013698,2]
[333727872,1722415842525,-321.344482,0.00013698,2]
[333727873,1722415842535,-500.0,0.00013698,2]
[333727874,1722415842545,-321.344482,0.00013698,2]
[333727875,1722415842554,-321.344482,0.00013698,2]
[333727876,1722415842563,-321.344482,0.00013698,2]
[333727877,1722415842573,-321.344482,0.00013698,2]
[333727878,1722415842583,-9766.37,0.00013698,2]
[333727879,1722415842592,-500.48716057,0.00013698,2]
[333727880,1722415842603,-321.344482,0.00013698,2]
[333727881,1722415842612,-321.344482,0.00013698,2]
[333727882,1722415842623,-500.0,0.00013698,2]
[333727883,1722415842637,-321.344482,0.00013698,2]
[333727884,1722415842646,-321.344482,0.00013698,2]
[333727885,1722415842657,-321.344482,0.00013698,2]
[333727886,1722415842666,-500.0,0.00013698,2]
[333727887,1722415842678,-321.344482,0.00013698,2]
[333727888,1722415842688,-1302.9,0.00013698,2]
[333727889,1722415842698,-321.344482,0.00013698,2]
[333727890,1722415842711,-500.0,0.00013698,2]
[333727891,1722415842720,-500.0,0.00013698,2]
[333727892,1722415842731,-500.0,0.00013698,2]
[333727893,1722415842741,-282.90711797,0.00013698,2]
[333727894,1722415842750,-500.0,0.00013698,2]
[333727895,1722415842760,-505.62071224,0.00013698,2]
[333727896,1722415842770,-500.0,0.00013698,2]
[333727897,1722415842779,-500.0,0.00013698,2]
[333727898,1722415842789,-151.0,0.00013698,2]
[333727899,1722415842798,-500.0,0.00013698,2]
[333727900,1722415842808,-151.0,0.00013698,2]
[333727901,1722415842818,-151.0,0.00013698,2]
[333727902,1722415842828,-151.0,0.00013698,2]
[333727903,1722415842837,-400.81230328,0.00013698,2]
[333727905,1722415842847,-151.0,0.00013698,2]
[333727906,1722415842857,-500.0,0.00013698,2]
[333727907,1722415842868,-151.0,0.00013698,2]
[333727908,1722415842877,-151.0,0.00013698,2]
[333727909,1722415842889,-500.0,0.00013698,2]
[333727910,1722415842899,-505.97087219,0.00013698,2]
[333727911,1722415842909,-151.0,0.00013698,2]
[333727912,1722415842919,-151.0,0.00013698,2]
[333727913,1722415842928,-151.0,0.00013698,2]
[333727914,1722415842938,-542.74438882,0.00013698,2]
[333727916,1722415842947,-502.04426339,0.00013698,2]
[333727918,1722415842956,-151.0,0.00013698,2]
[333727919,1722415842965,-842.77,0.00013698,2]
[333727921,1722415842976,-500.0,0.00013698,2]
[333727922,1722415842985,-500.0,0.00013698,2]
[333727923,1722415842994,-734.51,0.00013698,2]
[333727924,1722415843004,-500.0,0.00013698,2]
[333727925,1722415843014,-500.0,0.00013698,2]
[333727926,1722415843024,-1536.44,0.00013698,2]
[333727927,1722415843034,-502.47349695,0.00013698,2]
[333727928,1722415843043,-598.06,0.00013698,2]
[333727929,1722415843053,-500.0,0.00013698,2]
[333727930,1722415843063,-1208.04,0.00013698,2]
[333727931,1722415843073,-379.73496011,0.00013698,2]
[333727932,1722415843082,-500.0,0.00013698,2]
[333727933,1722415843092,-500.0,0.00013698,2]
[333727935,1722415843102,-500.89574356,0.00013698,2]
[333727937,1722415843112,-163.762717,0.00013698,2]
[333727938,1722415843123,-163.762717,0.00013698,2]
[333727940,1722415843135,-163.762717,0.00013698,2]
[333727942,1722415843144,-163.762717,0.00013698,2]
[333727943,1722415843155,-500.0,0.00013698,2]
[333727944,1722415843165,-163.762717,0.00013698,2]
[333727945,1722415843176,-163.762717,0.00013698,2]
[333727946,1722415843185,-163.762717,0.00013698,2]
[333727947,1722415843196,-163.762717,0.00013698,2]
[333727948,1722415843206,-163.762717,0.00013698,2]
[333727949,1722415843217,-163.762717,0.00013698,2]
[333727950,1722415843227,-163.762717,0.00013698,2]
[333727951,1722415843237,-163.762717,0.00013698,2]
[333727953,1722415843246,-163.762717,0.00013698,2]
[333727954,1722415843255,-163.762717,0.00013698,2]
[333727955,1722415843265,-500.0,0.00013698,2]
[333727956,1722415843275,-846.51,0.00013698,2]
[333727957,1722415843285,-500.0,0.00013698,2]
[333727958,1722415843295,-151.0,0.00013698,2]
[333727960,1722415843304,-500.0,0.00013698,2]
[333727961,1722415843314,-500.0,0.00013698,2]
[333727962,1722415843324,-2119.38,0.00013698,2]
[333727963,1722415843334,-500.0,0.00013698,2]
[333727964,1722415843343,-1147.64,0.00013698,2]
[333727965,1722415843353,-153.330096,0.00013698,2]
[333727966,1722415843363,-151.0,0.00013698,2]
[333727967,1722415843373,-1734.1,0.00013698,2]
[333727968,1722415843382,-151.0,0.00013698,2]
[333727969,1722415843392,-151.0,0.00013698,2]
[333727970,1722415843402,-434.37259152,0.00013698,2]
[333727971,1722415843412,-175.771196,0.00013698,2]
[333727972,1722415843422,-500.0,0.00013698,2]
[333727973,1722415843432,-500.0,0.00013698,2]
[333727974,1722415843443,-1767.28,0.00013698,2]
[333727975,1722415843454,-1126.01,0.00013698,2]
[333727976,1722415843465,-500.0,0.00013698,2]
[333727977,1722415843475,-500.0,0.00013698,2]
[333727978,1722415843484,-500.0,0.00013698,2]
[333727979,1722415843494,-513.75998381,0.00013698,2]
[333727980,1722415843504,-500.0,0.00013698,2]
[333727981,1722415843514,-500.0,0.00013698,2]
[333727982,1722415843524,-1177.62476246,0.00013698,2]
[333727983,1722415843697,-10734.42523754,0.00013698,2]
[333727984,1722415843709,-500.0,0.00013698,2]
[333727985,1722415843721,-500.0,0.00013698,2]
[333727986,1722415843732,-500.0,0.00013698,2]
[333727987,1722415843744,-500.0,0.00013698,2]
[333727988,1722415843754,-500.0,0.00013698,2]
[333727989,1722415843763,-500.0,0.00013698,2]
[333727990,1722415843775,-500.0,0.00013698,2]
[333727991,1722415843784,-500.0,0.00013698,2]
[333727992,1722415843795,-500.0,0.00013698,2]
[333727993,1722415843806,-151.0,0.00013698,2]
[333727994,1722415843816,-151.0,0.00013698,2]
[333727995,1722415843827,-151.0,0.00013698,2]
[333727996,1722415843837,-151.0,0.00013698,2]
[333727997,1722415843847,-151.0,0.00013698,2]
[333727998,1722415843859,-199.180602,0.00013698,2]
[333727999,1722415843870,-586.35956034,0.00013698,2]
[333728000,1722415843880,-637.64,0.00013698,2]
[333728001,1722415843892,-500.0,0.00013698,2]
[333728002,1722415843902,-500.0,0.00013698,2]
[333728003,1722415843914,-500.0,0.00013698,2]
[333728004,1722415843923,-500.0,0.00013698,2]
[333728005,1722415843932,-3901.73,0.00013698,2]
[333728006,1722415843941,-151.0,0.00013698,2]
[333728007,1722415843950,-4114.05,0.00013698,2]
[333728008,1722415843959,-151.0,0.00013698,2]
[333728009,1722415843968,-500.0,0.00013698,2]
[333728010,1722415843977,-500.0,0.00013698,2]
[333728011,1722415843987,-500.0,0.00013698,2]
[333728012,1722415843996,-500.0,0.00013698,2]
[333728013,1722415844005,-505.00582573,0.00013698,2]
[333728014,1722415844014,-500.0,0.00013698,2]
[333728015,1722415844024,-6299.19,0.00013698,2]
[333728016,1722415844033,-500.0,0.00013698,2]
[333728017,1722415844042,-500.0,0.00013698,2]
[333728018,1722415844052,-1135.19,0.00013698,2]
[333728019,1722415844061,-750.48,0.00013698,2]
[333728020,1722415844071,-1474.77,0.00013698,2]
[333728021,1722415844080,-500.0,0.00013698,2]
[333728022,1722415844089,-500.0,0.00013698,2]
[333728023,1722415844098,-937.77,0.00013698,2]
[333728024,1722415844108,-500.0,0.00013698,2]
[333728025,1722415844117,-151.216178,0.00013698,2]
[333728026,1722415844126,-1865.74,0.00013698,2]
[333728027,1722415844137,-500.0,0.00013698,2]
[333728028,1722415844146,-835.71,0.00013698,2]
[333728029,1722415844155,-500.0,0.00013698,2]
[333728030,1722415844165,-500.0,0.00013698,2]
[333728031,1722415844174,-1428.29,0.00013698,2]
[333728032,1722415844183,-500.0,0.00013698,2]
[333728033,1722415844192,-500.0,0.00013698,2]
[333728034,1722415844202,-500.0,0.00013698,2]
[333728035,1722415844211,-500.0,0.00013698,2]
[333728036,1722415844221,-997.00421456,0.00013698,2]
[333728045,1722415846285,-3579.04398372,0.00013352,2]
[333728047,1722415846295,-360.06562358,0.00013419,2]
[333728048,1722415846304,-1905.89578544,0.00013698,2]
[333728049,1722415846313,-500.0,0.00013698,2]
[333728051,1722415846324,-500.0,0.00013698,2]
[333728053,1722415846333,-1548.62,0.00013698,2]
[333728054,1722415846342,-224.27595518,0.00013698,2]
[333728055,1722415846353,-1157.62,0.00013698,2]
[333728056,1722415846362,-1252.18,0.00013698,2]
[333728057,1722415846372,-500.0,0.00013698,2]
[333728058,1722415846382,-500.0,0.00013698,2]
[333728059,1722415846392,-500.0,0.00013698,2]
[333728060,1722415846402,-500.0,0.00013698,2]
[333728061,1722415846411,-655.46,0.00013698,2]
[333728062,1722415846421,-500.0,0.00013698,2]
[333728063,1722415846430,-500.0,0.00013698,2]
[333728064,1722415846439,-657.67,0.00013698,2]
[333728065,1722415846449,-501.24518072,0.00013698,2]
[333728066,1722415846459,-790.56,0.00013698,2]
[333728067,1722415846468,-500.0,0.00013698,2]
[333728068,1722415846478,-500.0,0.00013698,2]
[333728069,1722415846487,-629.24943078,0.00013698,2]
[333728070,1722415846497,-1663.31,0.00013698,2]
[333728071,1722415846506,-500.0,0.00013698,2]
[333728072,1722415846517,-255.15035679,0.00013698,2]
[333728073,1722415846527,-500.0,0.00013698,2]
[333728074,1722415846536,-616.8,0.00013698,2]
[333728075,1722415846545,-512.62493774,0.00013698,2]
[333728076,1722415846555,-500.0,0.00013698,2]
[333728077,1722415846564,-500.0,0.00013698,2]
[333728078,1722415846573,-1679.1,0.00013698,2]
[333728079,1722415846582,-500.0,0.00013698,2]
[333728080,1722415846592,-503.25740556,0.00013698,2]
[333728081,1722415846602,-500.0,0.00013698,2]
[333728082,1722415846612,-496.0309722,0.00013698,2]
[333728083,1722415846653,-500.0,0.00013698,2]
[333728084,1722415846663,-1155.45,0.00013698,2]
[333728085,1722415846673,-506.30918997,0.00013698,2]
[333728086,1722415846683,-150.18772935,0.00013698,2]
[333728087,1722415846692,-500.16182026,0.00013698,2]
[333728088,1722415846702,-500.0,0.00013698,2]
[333728089,1722415846714,-645.3645662,0.00013698,2]
[333728090,1722415846723,-500.0,0.00013698,2]
[333728091,1722415846733,-500.0,0.00013698,2]
[333728092,1722415846742,-500.0,0.00013698,2]
[333728093,1722415846752,-522.45,0.00013698,2]
[333728094,1722415846761,-500.0,0.00013698,2]
[333728095,1722415846771,-612.56,0.00013698,2]
[333728096,1722415846780,-500.0,0.00013698,2]
[333728097,1722415846789,-500.0,0.00013698,2]
[333728098,1722415846799,-500.0,0.00013698,2]
[333728099,1722415846809,-700.82,0.00013698,2]
[333728100,1722415846819,-503.50938992,0.00013698,2]
[333728101,1722415846828,-151.0,0.00013698,2]
[333728102,1722415846837,-500.0,0.00013698,2]
[333728103,1722415846846,-151.0,0.00013698,2]
[333728104,1722415846856,-151.0,0.00013698,2]
[333728105,1722415846866,-500.0,0.00013698,2]
[333728106,1722415846875,-151.0,0.00013698,2]
[333728107,1722415846886,-1281.01,0.00013698,2]
[333728108,1722415846895,-501.41004709,0.00013698,2]
[333728109,1722415846904,-170.879906,0.00013698,2]
[333728110,1722415846914,-745.55,0.00013698,2]
[333728111,1722415846923,-500.0,0.00013698,2]
[333728112,1722415846932,-500.0,0.00013698,2]
[333728113,1722415846942,-152.658298,0.00013698,2]
[333728114,1722415846951,-1213.24,0.00013698,2]
[333728115,1722415846960,-500.0,0.00013698,2]
[333728116,1722415846969,-1845.62,0.00013698,2]
[333728117,1722415846978,-1496.42,0.00013698,2]
[333728118,1722415846987,-1673.03,0.00013698,2]
[333728119,1722415846996,-523.34935987,0.00013698,2]
[333728120,1722415847005,-1150.65,0.00013698,2]
[333728121,1722415847014,-500.0,0.00013698,2]
[333728122,1722415847024,-500.0,0.00013698,2]
[333728123,1722415847033,-500.0,0.00013698,2]
[333728124,1722415847042,-500.0,0.00013698,2]
[333728125,1722415847051,-500.0,0.00013698,2]
[333728126,1722415847061,-250.9238597,0.00013698,2]
[333728127,1722415847069,-500.0,0.00013698,2]
[333728128,1722415847079,-500.0,0.00013698,2]
[333728129,1722415847087,-1100.65,0.00013698,2]
[333728130,1722415847097,-1473.35,0.00013698,2]
[333728131,1722415847106,-500.0,0.00013698,2]
[333728132,1722415847115,-151.0,0.00013698,2]
[333728133,1722415847124,-151.0,0.00013698,2]
[333728134,1722415847133,-151.0,0.00013698,2]
[333728135,1722415847143,-151.0,0.00013698,2]
[333728136,1722415847151,-151.0,0.00013698,2]
[333728137,1722415847161,-151.0,0.00013698,2]
[333728138,1722415847170,-500.0,0.00013698,2]
[333728139,1722415847179,-151.0,0.00013698,2]
[333728140,1722415847188,-151.0,0.00013698,2]
[333728141,1722415847197,-599.0,0.00013698,2]
[333728142,1722415847206,-500.0,0.00013698,2]
[333728143,1722415847215,-151.0,0.00013698,2]
[333728144,1722415847224,-500.0,0.00013698,2]
[333728145,1722415847233,-710.22,0.00013698,2]
[333728146,1722415847242,-151.0,0.00013698,2]
[333728147,1722415847252,-500.0,0.00013698,2]
[333728148,1722415847261,-151.0,0.00013698,2]
[333728149,1722415847270,-274.446046,0.00013698,2]
[333728150,1722415847279,-1079.04,0.00013698,2]
[333728151,1722415847288,-770.75,0.00013698,2]
[333728152,1722415847297,-1028.64883393,0.00013698,2]
[333728153,1722415847310,-2267.73116607,0.00013698,2]
[333728154,1722415847320,-500.0,0.00013698,2]
[333728155,1722415847329,-500.0,0.00013698,2]
[333728156,1722415847338,-510.23796948,0.00013698,2]
[333728157,1722415847348,-500.0,0.00013698,2]
[333728158,1722415847356,-500.0,0.00013698,2]
[333728159,1722415847366,-1572.03,0.00013698,2]
[333728160,1722415847375,-500.0,0.00013698,2]
[333728161,1722415847384,-500.0,0.00013698,2]
[333728162,1722415847397,-508.39921414,0.00013698,2]
[333728163,1722415847406,-358.4536143,0.00013698,2]
[333728164,1722415847415,-678.08,0.00013698,2]
[333728165,1722415847427,-151.0,0.00013698,2]
[333728166,1722415847436,-500.0,0.00013698,2]
[333728167,1722415847445,-502.76569526,0.00013698,2]
[333728168,1722415847454,-151.0,0.00013698,2]
[333728169,1722415847463,-562.08,0.00013698,2]
[333728170,1722415847473,-151.0,0.00013698,2]
[333728171,1722415847482,-151.0,0.00013698,2]
[333728172,1722415847491,-151.0,0.00013698,2]
[333728173,1722415847500,-151.0,0.00013698,2]
[333728174,1722415847509,-500.0,0.00013698,2]
[333728175,1722415847519,-151.0,0.00013698,2]
[333728176,1722415847529,-660.80132233,0.00013698,2]
[333728182,1722416521289,727.27742318,9.999e-05,2]
[333728183,1722416570116,319.61774118,9.999e-05,2]
[333728184,1722416576869,531.87541738,9.999e-05,2]
[333728185,1722416667796,531.58709571,9.999e-05,2]
[333728186,1722416672138,163.82336473,9.999e-05,2]
[333728187,1722416735427,272.09711772,9.999e-05,2]
[333728188,1722416771985,308.36113475,0.0001,2]
[333728189,1722416857587,174.37281606,0.0001,2]
[333728190,1722416867257,154.77623179,9.999e-05,2]
[333728191,1722416868510,193.62459389,9.999e-05,2]
[333728192,1722416879518,494.06495644,9.999e-05,2]
[333728193,1722416890975,542.8937864,9.999e-05,2]
[333728200,1722416915334,248.95807837,9.999e-05,2]
[333728208,1722416972965,643.25935119,9.999e-05,2]
[333728212,1722417002030,495.41713421,9.999e-05,2]
[333728256,1722417032458,-166.666666,0.00012354,2]
[333728257,1722417032467,-167.024069,0.00012986,2]
[333728258,1722417032477,-1000.0,0.00013,5]
[333728259,1722417032486,-294.1445528,0.000135,2]
[333728260,1722417032495,-413.5169349,0.000135,2]
[333728261,1722417032504,-367.7265943,0.00013526,2]
[333728262,1722417032513,-250.6098704,0.00013589,2]
[333728263,1722417032522,-1649.6977188,0.0001359,2]
[333728309,1722417039422,-350.3022812,0.0001359,2]
[333728310,1722417039433,-250.60987038,0.00013591,2]
[333728311,1722417039444,-250.60987038,0.00013594,2]
[333728312,1722417039454,-250.60987038,0.00013596,2]
[333728313,1722417039463,-300.0,0.00013596,2]
[333728314,1722417039473,-300.0,0.00013596,2]
[333728315,1722417039483,-3392.96,0.00013597,2]
[333728316,1722417039492,-3392.96,0.00013597,2]
[333728317,1722417039501,-250.60987038,0.00013598,2]
[333728318,1722417039511,-88888.0,0.00013598,2]
[333728319,1722417039520,-294.1445528,0.000136,2]
[333728320,1722417039529,-152.54184496,0.0001363,2]
[333728321,1722417039540,-3579.04398373,0.00013641,2]
[333728322,1722417039550,-4103.44789666,0.00013675,2]
[333728323,1722417039574,-31617.47027214,0.00013675,2]
[333728324,1722417039584,-1410.0,0.00013686,2]
[333728325,1722417039594,-3392.96,0.00013687,2]
[333728326,1722417039605,-250046.427182,0.00013688,2]
[333728327,1722417039616,-3392.96,0.00013697,2]
[333728328,1722417039627,-3392.96,0.00013697,2]
[333728329,1722417039639,-3392.96,0.00013697,2]
[333728330,1722417039650,-3392.96,0.00013697,2]
[333728331,1722417039661,-3392.96,0.00013697,2]
[333728332,1722417039670,-3392.96,0.00013697,2]
[333728333,1722417039680,-24912.97251412,0.00013698,5]
[333728334,1722417039690,-9248.54477378,0.00013698,5]
[333728335,1722417039699,-500.0,0.00013698,2]
[333728336,1722417039709,-7968.33486527,0.00013698,2]
[333728337,1722417039718,-500.0,0.00013698,2]
[333728338,1722417039727,-248.39039608,0.00013698,2]
[333728339,1722417039737,-443.57171913,0.00013698,2]
[333728340,1722417039747,-158.54426512,0.00013698,2]
[333728341,1722417039758,-500.0,0.00013698,2]
[333728342,1722417039767,-500.0,0.00013698,2]
[333728343,1722417039777,-500.0,0.00013698,2]
[333728344,1722417039786,-318.55827651,0.00013698,2]
[333728345,1722417039795,-500.0,0.00013698,2]
[333728346,1722417039806,-400.0,0.00013698,2]
[333728347,1722417039815,-500.0,0.00013698,2]
[333728348,1722417039826,-500.0,0.00013698,2]
[333728349,1722417039836,-500.0,0.00013698,2]
[333728350,1722417039849,-349.22430972,0.00013698,2]
[333728351,1722417039859,-500.0,0.00013698,2]
[333728352,1722417039870,-500.0,0.00013698,2]
[333728353,1722417039881,-450.0,0.00013698,2]
[333728354,1722417039891,-577.72,0.00013698,2]
[333728355,1722417039901,-500.0,0.00013698,2]
[333728356,1722417039912,-1374.0,0.00013698,2]
[333728357,1722417039921,-500.0,0.00013698,2]
[333728358,1722417039931,-500.0,0.00013698,2]
[333728359,1722417039940,-500.0,0.00013698,2]
[333728360,1722417039950,-500.0,0.00013698,2]
[333728361,1722417039960,-500.0,0.00013698,2]
[333728362,1722417039969,-866.78,0.00013698,2]
[333728364,1722417039979,-500.0,0.00013698,2]
[333728365,1722417039989,-500.0,0.00013698,2]
[333728366,1722417039998,-500.0,0.00013698,2]
[333728367,1722417040007,-151.0,0.00013698,2]
[333728368,1722417040017,-151.0,0.00013698,2]
[333728369,1722417040028,-500.0,0.00013698,2]
[333728371,1722417040041,-500.0,0.00013698,2]
[333728372,1722417040050,-151.0,0.00013698,2]
[333728373,1722417040060,-151.0,0.00013698,2]
[333728374,1722417040071,-888.79,0.00013698,2]
[333728376,1722417040081,-500.0,0.00013698,2]
[333728378,1722417040090,-500.0,0.00013698,2]
[333728380,1722417040100,-396.72760412,0.00013698,2]
[333728382,1722417040110,-500.0,0.00013698,2]
[333728384,1722417040119,-500.0,0.00013698,2]
[333728385,1722417040128,-500.0,0.00013698,2]
[333728386,1722417040138,-507.03103475,0.00013698,2]
[333728387,1722417040147,-500.0,0.00013698,2]
[333728388,1722417040157,-503.42198237,0.00013698,2]
[333728389,1722417040167,-502.33610502,0.00013698,2]
[333728390,1722417040177,-312.80933271,0.00013698,2]
[333728391,1722417040187,-353.71210035,0.00013698,2]
[333728392,1722417040197,-502.01566386,0.00013698,2]
[333728393,1722417040207,-500.0,0.00013698,2]
[333728394,1722417040217,-500.0,0.00013698,2]
[333728395,1722417040227,-545.39409708,0.00013698,2]
[333728396,1722417040236,-500.0,0.00013698,2]
[333728397,1722417040246,-500.0,0.00013698,2]
[333728398,1722417040256,-500.0,0.00013698,2]
[333728399,1722417040266,-507.20628239,0.00013698,2]
[333728400,1722417040276,-500.0,0.00013698,2]
[333728401,1722417040285,-500.0,0.00013698,2]
[333728403,1722417040295,-500.0,0.00013698,2]
[333728405,1722417040306,-151.0,0.00013698,2]
[333728407,1722417040316,-664.29,0.00013698,2]
[333728409,1722417040325,-500.0,0.00013698,2]
[333728411,1722417040335,-522.62450621,0.00013698,2]
[333728412,1722417040343,-500.0,0.00013698,2]
[333728414,1722417040353,-150.8179241,0.00013698,2]
[333728417,1722417040579,-349.1820759,0.00013698,2]
[333728418,1722417040588,-500.0,0.00013698,2]
[333728419,1722417040598,-500.0,0.00013698,2]
[333728420,1722417040608,-503.64346272,0.00013698,2]
[333728421,1722417040620,-500.0,0.00013698,2]
[333728422,1722417040629,-500.0,0.00013698,2]
[333728423,1722417040639,-445.51695663,0.00013698,2]
[333728424,1722417040648,-151.0,0.00013698,2]